[Event "*** Titled Tuesday Blitz"]
[Site "Chess.com"]
[Date "2021.02.02"]
[Round "1"]
[White "BikingBrian"]
[Black "Carnivoras"]
[Result "1/2-1/2"]
[WhiteElo "2326"]
[BlackElo "2610"]
[TimeControl "180+1"]
[EndTime "10:07:04 PST"]
[Termination "Game drawn by repetition"]

1. d4 {[%clk 0:03:00.9]} 1... d5 {[%clk 0:02:54.5]} 2. Bf4 {[%clk 0:03:00.3]}
2... Nf6 {[%clk 0:02:52.7]} 3. e3 {[%clk 0:03:00.7]} 3... Bf5 {[%clk 0:02:51.8]}
4. c4 {[%clk 0:02:59.9]} 4... c6 {[%clk 0:02:51.6]} 5. Nc3 {[%clk 0:03:00.3]}
5... e6 {[%clk 0:02:51.8]} 6. Qb3 {[%clk 0:03:00.4]} 6... Qc8 {[%clk 0:02:44]}
7. cxd5 {[%clk 0:03:00.3]} 7... exd5 {[%clk 0:02:43.3]} 8. Rc1 {[%clk
0:03:00.2]} 8... a6 {[%clk 0:02:14.3]} 9. Nf3 {[%clk 0:02:49.3]} 9... Be7 {[%clk
0:02:07.3]} 10. Be2 {[%clk 0:02:47.1]} 10... O-O {[%clk 0:02:07]} 11. O-O {[%clk
0:02:42.4]} 11... Nbd7 {[%clk 0:02:03.9]} 12. Nh4 {[%clk 0:02:42.6]} 12... Be6
{[%clk 0:02:03.7]} 13. Bd3 {[%clk 0:02:33.6]} 13... Ne4 {[%clk 0:01:53.9]} 14.
Nf3 {[%clk 0:02:31.6]} 14... Re8 {[%clk 0:01:49.9]} 15. Qc2 {[%clk 0:02:29.2]}
15... f5 {[%clk 0:01:35.6]} 16. Ne5 {[%clk 0:02:25.4]} 16... Bf6 {[%clk
0:01:21.9]} 17. f3 {[%clk 0:02:11.7]} 17... Nxc3 {[%clk 0:01:20.3]} 18. Nxd7
{[%clk 0:02:01.5]} 18... Qxd7 {[%clk 0:01:09.6]} 19. bxc3 {[%clk 0:02:01]} 19...
g6 {[%clk 0:00:36.2]} 20. Rce1 {[%clk 0:01:59.8]} 20... Bg7 {[%clk 0:00:33.4]}
21. e4 {[%clk 0:01:55.1]} 21... fxe4 {[%clk 0:00:30.9]} 22. fxe4 {[%clk
0:01:56]} 22... dxe4 {[%clk 0:00:30.1]} 23. Bxe4 {[%clk 0:01:54.4]} 23... Bc4
{[%clk 0:00:29]} 24. Bd3 {[%clk 0:01:51.2]} 24... Bxd3 {[%clk 0:00:20.1]} 25.
Qxd3 {[%clk 0:01:52.1]} 25... Rxe1 {[%clk 0:00:20]} 26. Rxe1 {[%clk 0:01:52.1]}
26... Re8 {[%clk 0:00:20.8]} 27. Re4 {[%clk 0:01:36.5]} 27... Qf7 {[%clk
0:00:20.3]} 28. Rxe8+ {[%clk 0:01:14.6]} 28... Qxe8 {[%clk 0:00:21.2]} 29. h3
{[%clk 0:01:03.6]} 29... h6 {[%clk 0:00:21.6]} 30. Kh2 {[%clk 0:01:02.8]} 30...
Qf7 {[%clk 0:00:21.9]} 31. Qd2 {[%clk 0:00:59.2]} 31... Kh7 {[%clk 0:00:22.6]}
32. a4 {[%clk 0:00:58.2]} 32... Qc4 {[%clk 0:00:22.5]} 33. Qe3 {[%clk
0:00:45.2]} 33... Qxa4 {[%clk 0:00:21.8]} 34. Qe7 {[%clk 0:00:45.3]} 34... Kg8
{[%clk 0:00:15.4]} 35. Qe6+ {[%clk 0:00:41.4]} 35... Kh8 {[%clk 0:00:14.1]} 36.
Qf7 {[%clk 0:00:35.9]} 36... Qb5 {[%clk 0:00:11.9]} 37. Qxg6 {[%clk 0:00:32.6]}
37... a5 {[%clk 0:00:12.2]} 38. Bxh6 {[%clk 0:00:31.6]} 38... Bxh6 {[%clk
0:00:12.7]} 39. Qxh6+ {[%clk 0:00:32.5]} 39... Kg8 {[%clk 0:00:13.3]} 40. Qe6+
{[%clk 0:00:31.3]} 40... Kh8 {[%clk 0:00:13.6]} 41. Qf6+ {[%clk 0:00:31.3]}
41... Kg8 {[%clk 0:00:13.5]} 42. Qg6+ {[%clk 0:00:31.1]} 42... Kf8 {[%clk
0:00:13.8]} 43. Qd6+ {[%clk 0:00:29.9]} 43... Kg8 {[%clk 0:00:14.1]} 44. Qe6+
{[%clk 0:00:29.4]} 44... Kf8 {[%clk 0:00:14]} 45. Qd6+ {[%clk 0:00:29.9]} 45...
Kg8 {[%clk 0:00:14]} 46. Qe6+ {[%clk 0:00:30.4]} 1/2-1/2

[Event "*** Titled Tuesday Blitz"]
[Site "Chess.com"]
[Date "2021.02.02"]
[Round "1"]
[White "VladimirBugayev"]
[Black "IriBu"]
[Result "0-1"]
[WhiteElo "2227"]
[BlackElo "2544"]
[TimeControl "180+1"]
[EndTime "10:07:04 PST"]
[Termination "IriBu won on time"]

1. e4 {[%clk 0:03:00.9]} 1... c5 {[%clk 0:02:59.4]} 2. Nc3 {[%clk 0:03:00.1]}
2... Nc6 {[%clk 0:02:58.9]} 3. Bb5 {[%clk 0:03:00.6]} 3... Nd4 {[%clk
0:02:57.5]} 4. Nf3 {[%clk 0:03:01.1]} 4... a6 {[%clk 0:02:54.5]} 5. Bd3 {[%clk
0:03:00]} 5... g6 {[%clk 0:02:53.8]} 6. Nxd4 {[%clk 0:02:56.8]} 6... cxd4 {[%clk
0:02:54.7]} 7. Ne2 {[%clk 0:02:56.8]} 7... Bg7 {[%clk 0:02:55.2]} 8. c3 {[%clk
0:02:56.6]} 8... dxc3 {[%clk 0:02:53.6]} 9. dxc3 {[%clk 0:02:56.4]} 9... d6
{[%clk 0:02:53.8]} 10. O-O {[%clk 0:02:55.3]} 10... e6 {[%clk 0:02:51.2]} 11. c4
{[%clk 0:02:44.5]} 11... Nf6 {[%clk 0:02:48.7]} 12. Nc3 {[%clk 0:02:44.4]} 12...
O-O {[%clk 0:02:48.4]} 13. Bg5 {[%clk 0:02:26.3]} 13... h6 {[%clk 0:02:47.3]}
14. Bf4 {[%clk 0:02:25.9]} 14... e5 {[%clk 0:02:46.9]} 15. Be3 {[%clk
0:02:25.3]} 15... Be6 {[%clk 0:02:46.9]} 16. f3 {[%clk 0:02:23]} 16... Rc8
{[%clk 0:02:45.8]} 17. Qe2 {[%clk 0:02:22.8]} 17... Qc7 {[%clk 0:02:44.4]} 18.
Nd5 {[%clk 0:01:50.8]} 18... Bxd5 {[%clk 0:02:42.1]} 19. cxd5 {[%clk 0:01:50.4]}
19... Qd7 {[%clk 0:02:39.7]} 20. Rfc1 {[%clk 0:01:38.1]} 20... Nh5 {[%clk
0:02:36.8]} 21. Qd2 {[%clk 0:01:20.8]} 21... Kh7 {[%clk 0:02:35.8]} 22. Rxc8
{[%clk 0:01:17.7]} 22... Rxc8 {[%clk 0:02:35.3]} 23. Rc1 {[%clk 0:01:18.2]}
23... Rxc1+ {[%clk 0:02:32.7]} 24. Qxc1 {[%clk 0:01:18.3]} 24... Nf4 {[%clk
0:02:33.3]} 25. Bf1 {[%clk 0:01:16.7]} 25... f5 {[%clk 0:02:31.4]} 26. g3 {[%clk
0:01:13.1]} 26... Nh5 {[%clk 0:02:29.1]} 27. Bh3 {[%clk 0:01:07.6]} 27... Qf7
{[%clk 0:02:28]} 28. exf5 {[%clk 0:01:04.8]} 28... gxf5 {[%clk 0:02:27.9]} 29.
Qc2 {[%clk 0:01:05.3]} 29... Kg6 {[%clk 0:02:21.7]} 30. g4 {[%clk 0:01:00.4]}
30... Nf4 {[%clk 0:02:21.9]} 31. gxf5+ {[%clk 0:00:59.9]} 31... Kf6 {[%clk
0:02:19]} 32. Bxf4 {[%clk 0:00:55]} 32... exf4 {[%clk 0:02:19]} 33. Qe4 {[%clk
0:00:55.6]} 33... Kg5 {[%clk 0:02:13.1]} 34. Qe6 {[%clk 0:00:53.9]} 34... Qf6
{[%clk 0:02:10.3]} 35. b3 {[%clk 0:00:46.2]} 35... h5 {[%clk 0:02:06]} 36. Qxf6+
{[%clk 0:00:40]} 36... Kxf6 {[%clk 0:02:04.2]} 37. Kf1 {[%clk 0:00:32.6]} 37...
b6 {[%clk 0:02:03]} 38. Ke2 {[%clk 0:00:32.2]} 38... Ke5 {[%clk 0:02:03.4]} 39.
f6 {[%clk 0:00:30.5]} 39... Bxf6 {[%clk 0:02:02.7]} 40. Be6 {[%clk 0:00:30.9]}
40... Kd4 {[%clk 0:01:59.1]} 41. Kd2 {[%clk 0:00:29.4]} 41... Bh4 {[%clk
0:01:51]} 42. h3 {[%clk 0:00:29.1]} 42... Bf2 {[%clk 0:01:51]} 43. Bf7 {[%clk
0:00:26.1]} 43... b5 {[%clk 0:01:48.3]} 44. Bxh5 {[%clk 0:00:24]} 44... Kxd5
{[%clk 0:01:45.9]} 45. Kd3 {[%clk 0:00:24.3]} 45... Kc5 {[%clk 0:01:44.6]} 46.
Bg4 {[%clk 0:00:20.1]} 46... Kb4 {[%clk 0:01:42.9]} 47. Bc8 {[%clk 0:00:18.8]}
47... a5 {[%clk 0:01:43.1]} 48. Ke4 {[%clk 0:00:18.2]} 48... Bg3 {[%clk
0:01:41.6]} 49. Bd7 {[%clk 0:00:16.6]} 49... Kc5 {[%clk 0:01:36.1]} 50. Kf5
{[%clk 0:00:13.3]} 50... d5 {[%clk 0:01:33.1]} 51. Kg4 {[%clk 0:00:13.4]} 51...
d4 {[%clk 0:01:31.5]} 52. Bf5 {[%clk 0:00:13.8]} 52... Kb4 {[%clk 0:01:28.9]}
53. h4 {[%clk 0:00:13.7]} 53... Kc3 {[%clk 0:01:15.7]} 54. h5 {[%clk 0:00:12.6]}
54... d3 {[%clk 0:01:16.2]} 55. h6 {[%clk 0:00:08.4]} 55... Bf2 {[%clk
0:01:14.6]} 56. Bxd3 {[%clk 0:00:01.7]} 56... Kxd3 {[%clk 0:01:14.5]} 57. Kxf4
{[%clk 0:00:02.4]} 57... Be3+ {[%clk 0:01:13.5]} 0-1

[Event "*** Titled Tuesday Blitz"]
[Site "Chess.com"]
[Date "2021.02.02"]
[Round "1"]
[White "Volodar_Murzin"]
[Black "lamomiablanca"]
[Result "1-0"]
[WhiteElo "2575"]
[BlackElo "2266"]
[TimeControl "180+1"]
[EndTime "10:07:05 PST"]
[Termination "Volodar_Murzin won by checkmate"]

1. e4 {[%clk 0:03:00.9]} 1... c5 {[%clk 0:02:57]} 2. Nf3 {[%clk 0:03:00.9]} 2...
Nc6 {[%clk 0:02:56.3]} 3. Bb5 {[%clk 0:02:59.6]} 3... g6 {[%clk 0:02:53.7]} 4.
Bxc6 {[%clk 0:02:50.9]} 4... dxc6 {[%clk 0:02:52.5]} 5. O-O {[%clk 0:02:51.8]}
5... Bg7 {[%clk 0:02:51.9]} 6. d3 {[%clk 0:02:49.2]} 6... Nf6 {[%clk 0:02:51.1]}
7. a4 {[%clk 0:02:42.8]} 7... a5 {[%clk 0:02:49.5]} 8. Nbd2 {[%clk 0:02:40.7]}
8... O-O {[%clk 0:02:48.4]} 9. Re1 {[%clk 0:02:40.1]} 9... Qc7 {[%clk
0:02:36.9]} 10. Nc4 {[%clk 0:02:34.1]} 10... b6 {[%clk 0:02:32.9]} 11. h3 {[%clk
0:02:07.8]} 11... Nd7 {[%clk 0:02:20.3]} 12. e5 {[%clk 0:02:05.2]} 12... b5
{[%clk 0:02:13.5]} 13. Na3 {[%clk 0:01:36]} 13... Nxe5 {[%clk 0:01:59.4]} 14.
Nxe5 {[%clk 0:01:25.6]} 14... Bxe5 {[%clk 0:02:00.3]} 15. axb5 {[%clk 0:01:25]}
15... Bb7 {[%clk 0:01:42.3]} 16. b6 {[%clk 0:01:21.3]} 16... Qb8 {[%clk
0:01:38.7]} 17. Nc4 {[%clk 0:01:20.4]} 17... Bf6 {[%clk 0:01:37.1]} 18. Be3
{[%clk 0:00:46.7]} 18... a4 {[%clk 0:01:02.9]} 19. Bxc5 {[%clk 0:00:45.4]} 19...
Re8 {[%clk 0:00:56.9]} 20. c3 {[%clk 0:00:37.1]} 20... Ba6 {[%clk 0:00:34]} 21.
Rxa4 {[%clk 0:00:34.2]} 21... Bb5 {[%clk 0:00:34.3]} 22. Rxa8 {[%clk 0:00:33.2]}
22... Qxa8 {[%clk 0:00:35.2]} 23. Qf3 {[%clk 0:00:31.8]} 23... Qc8 {[%clk
0:00:27.4]} 24. Ne5 {[%clk 0:00:17.9]} 24... Kg7 {[%clk 0:00:21]} 25. b4 {[%clk
0:00:15.7]} 25... Rd8 {[%clk 0:00:17.5]} 26. c4 {[%clk 0:00:11.3]} 26... Ba4
{[%clk 0:00:14.9]} 27. d4 {[%clk 0:00:04]} 27... Bc2 {[%clk 0:00:12.4]} 28. Nxf7
{[%clk 0:00:04.2]} 28... Kxf7 {[%clk 0:00:11.1]} 29. Rxe7+ {[%clk 0:00:03]}
29... Kg8 {[%clk 0:00:09.4]} 30. Qxf6 {[%clk 0:00:03.9]} 30... Rd7 {[%clk
0:00:09.1]} 31. Qg7# {[%clk 0:00:04.1]} 1-0

[Event "*** Titled Tuesday Blitz"]
[Site "Chess.com"]
[Date "2021.02.02"]
[Round "1"]
[White "SaqoChess_Twitch"]
[Black "Trickster_Pony"]
[Result "1/2-1/2"]
[WhiteElo "2471"]
[BlackElo "1442"]
[TimeControl "180+1"]
[EndTime "10:07:05 PST"]
[Termination "Game drawn by stalemate"]

1. d4 {[%clk 0:02:56.7]} 1... d5 {[%clk 0:02:54.3]} 2. c4 {[%clk 0:02:56.5]}
2... Nc6 {[%clk 0:02:53]} 3. Nc3 {[%clk 0:02:56.9]} 3... e5 {[%clk 0:02:52.2]}
4. cxd5 {[%clk 0:02:54.3]} 4... Nxd4 {[%clk 0:02:49.7]} 5. e3 {[%clk 0:02:54.2]}
5... Nf5 {[%clk 0:02:49.2]} 6. Nf3 {[%clk 0:02:51.4]} 6... Bd6 {[%clk
0:02:43.7]} 7. Bb5+ {[%clk 0:02:50.4]} 7... Bd7 {[%clk 0:02:41.1]} 8. O-O {[%clk
0:02:48.4]} 8... Nf6 {[%clk 0:02:34.5]} 9. Bxd7+ {[%clk 0:02:43.2]} 9... Qxd7
{[%clk 0:02:31.1]} 10. e4 {[%clk 0:02:43.8]} 10... Ne7 {[%clk 0:02:28.1]} 11.
Bg5 {[%clk 0:02:39.8]} 11... h6 {[%clk 0:02:13.9]} 12. Be3 {[%clk 0:02:36.8]}
12... O-O {[%clk 0:02:11.5]} 13. Nd2 {[%clk 0:02:34.4]} 13... Bb4 {[%clk
0:01:59.3]} 14. a3 {[%clk 0:02:32.3]} 14... Ba5 {[%clk 0:01:40.1]} 15. b4 {[%clk
0:02:21]} 15... Bb6 {[%clk 0:01:38.5]} 16. Nc4 {[%clk 0:02:15.3]} 16... Ng6
{[%clk 0:01:23]} 17. Nxb6 {[%clk 0:02:04.4]} 17... axb6 {[%clk 0:01:23.5]} 18.
f3 {[%clk 0:02:05.3]} 18... Rfd8 {[%clk 0:01:11.2]} 19. Qe2 {[%clk 0:02:03.3]}
19... Qe7 {[%clk 0:01:07.7]} 20. Nb5 {[%clk 0:02:01]} 20... c6 {[%clk
0:00:53.4]} 21. dxc6 {[%clk 0:01:56.2]} 21... bxc6 {[%clk 0:00:54.3]} 22. Nc3
{[%clk 0:01:55.4]} 22... Nd7 {[%clk 0:00:34.7]} 23. Rfd1 {[%clk 0:01:52.4]}
23... c5 {[%clk 0:00:34]} 24. Nd5 {[%clk 0:01:50.4]} 24... Qf8 {[%clk
0:00:21.9]} 25. Nxb6 {[%clk 0:01:44.7]} 25... Nxb6 {[%clk 0:00:21.2]} 26. Bxc5
{[%clk 0:01:45.6]} 26... Rxd1+ {[%clk 0:00:16.3]} 27. Rxd1 {[%clk 0:01:44.6]}
27... Qb8 {[%clk 0:00:16.9]} 28. Qb5 {[%clk 0:01:43.8]} 28... Na4 {[%clk
0:00:11.8]} 29. Qxb8+ {[%clk 0:01:41.6]} 29... Rxb8 {[%clk 0:00:12.7]} 30. Bd6
{[%clk 0:01:42.2]} 30... Rd8 {[%clk 0:00:12.1]} 31. Kf2 {[%clk 0:01:34.9]} 31...
Nc3 {[%clk 0:00:11]} 32. Rc1 {[%clk 0:01:34.8]} 32... Rxd6 {[%clk 0:00:10]} 33.
Rxc3 {[%clk 0:01:34.6]} 33... f6 {[%clk 0:00:10.6]} 34. g3 {[%clk 0:01:34]}
34... Ra6 {[%clk 0:00:10.3]} 35. Ke3 {[%clk 0:01:34.2]} 35... Kf7 {[%clk
0:00:10.4]} 36. Rb3 {[%clk 0:01:34.8]} 36... Ke6 {[%clk 0:00:10.6]} 37. b5
{[%clk 0:01:35.7]} 37... Ra8 {[%clk 0:00:10]} 38. b6 {[%clk 0:01:35.6]} 38...
Ne7 {[%clk 0:00:10.5]} 39. b7 {[%clk 0:01:35.8]} 39... Rb8 {[%clk 0:00:10.7]}
40. a4 {[%clk 0:01:36.7]} 40... Nc6 {[%clk 0:00:10.3]} 41. Rb6 {[%clk 0:01:37]}
41... Kd7 {[%clk 0:00:09.5]} 42. Kd3 {[%clk 0:01:35.4]} 42... Na5 {[%clk
0:00:09.5]} 43. Rb5 {[%clk 0:01:33.9]} 43... Nxb7 {[%clk 0:00:09.2]} 44. a5
{[%clk 0:01:34.4]} 44... Kc6 {[%clk 0:00:08.4]} 45. Rb6+ {[%clk 0:01:34.2]}
45... Kc7 {[%clk 0:00:08.4]} 46. Ra6 {[%clk 0:01:34.1]} 46... Nc5+ {[%clk
0:00:08.5]} 47. Kc4 {[%clk 0:01:34.5]} 47... Nxa6 {[%clk 0:00:09.4]} 48. Kd5
{[%clk 0:01:35.4]} 48... Rb4 {[%clk 0:00:09.6]} 49. Ke6 {[%clk 0:01:36.3]} 49...
Ra4 {[%clk 0:00:10.4]} 50. Kf7 {[%clk 0:01:36.7]} 50... Rxa5 {[%clk 0:00:11.3]}
51. Kxg7 {[%clk 0:01:37.6]} 51... Nc5 {[%clk 0:00:10]} 52. Kxf6 {[%clk
0:01:37.5]} 52... Nd7+ {[%clk 0:00:10.4]} 53. Kg6 {[%clk 0:01:37.4]} 53... Ra3
{[%clk 0:00:10.8]} 54. f4 {[%clk 0:01:36.6]} 54... exf4 {[%clk 0:00:11.7]} 55.
gxf4 {[%clk 0:01:37.5]} 55... Rh3 {[%clk 0:00:11.8]} 56. e5 {[%clk 0:01:36]}
56... Rxh2 {[%clk 0:00:11.6]} 57. e6 {[%clk 0:01:36.5]} 57... Nf8+ {[%clk
0:00:11.4]} 58. Kf7 {[%clk 0:01:37.2]} 58... Nxe6 {[%clk 0:00:11]} 59. Kxe6
{[%clk 0:01:38.1]} 59... Rf2 {[%clk 0:00:11.2]} 60. Kf5 {[%clk 0:01:38.1]} 60...
h5 {[%clk 0:00:10.7]} 61. Kg5 {[%clk 0:01:39]} 61... Rh2 {[%clk 0:00:07.5]} 62.
f5 {[%clk 0:01:38.9]} 62... Kd7 {[%clk 0:00:07.6]} 63. f6 {[%clk 0:01:39.8]}
63... Ke8 {[%clk 0:00:07.8]} 64. Kf4 {[%clk 0:01:39.5]} 64... Kf8 {[%clk
0:00:08]} 65. Kg3 {[%clk 0:01:40.4]} 65... Kf7 {[%clk 0:00:08.4]} 66. Kxh2
{[%clk 0:01:40.1]} 66... Kxf6 {[%clk 0:00:09.1]} 67. Kh3 {[%clk 0:01:41]} 67...
Kg5 {[%clk 0:00:09]} 68. Kh2 {[%clk 0:01:41.9]} 68... Kg4 {[%clk 0:00:09.1]} 69.
Kh1 {[%clk 0:01:42.8]} 69... h4 {[%clk 0:00:09.5]} 70. Kg1 {[%clk 0:01:43.7]}
70... h3 {[%clk 0:00:10]} 71. Kh1 {[%clk 0:01:44.6]} 71... Kg3 {[%clk
0:00:10.2]} 72. Kg1 {[%clk 0:01:45.5]} 72... h2+ {[%clk 0:00:10.7]} 73. Kh1
{[%clk 0:01:46.4]} 73... Kh3 {[%clk 0:00:10.8]} 1/2-1/2

[Event "*** Titled Tuesday Blitz"]
[Site "Chess.com"]
[Date "2021.02.02"]
[Round "1"]
[White "tjychess"]
[Black "mfwagnerpeixoto"]
[Result "1-0"]
[WhiteElo "2651"]
[BlackElo "2344"]
[TimeControl "180+1"]
[EndTime "10:07:08 PST"]
[Termination "tjychess won by resignation"]

1. d4 {[%clk 0:03:00.9]} 1... d5 {[%clk 0:02:56]} 2. Nf3 {[%clk 0:02:57.9]} 2...
c6 {[%clk 0:02:55.9]} 3. c4 {[%clk 0:02:57.8]} 3... Nf6 {[%clk 0:02:55.1]} 4. e3
{[%clk 0:02:57.4]} 4... a6 {[%clk 0:02:53.3]} 5. a4 {[%clk 0:02:56.3]} 5... Bg4
{[%clk 0:02:51.4]} 6. Nc3 {[%clk 0:02:52.1]} 6... e6 {[%clk 0:02:46.1]} 7. Qb3
{[%clk 0:02:52.3]} 7... Bxf3 {[%clk 0:02:39.6]} 8. Qxb7 {[%clk 0:02:42.1]} 8...
Nbd7 {[%clk 0:02:33.3]} 9. gxf3 {[%clk 0:02:41.7]} 9... Rb8 {[%clk 0:02:14.4]}
10. Qxa6 {[%clk 0:02:36.7]} 10... Ra8 {[%clk 0:02:09.4]} 11. Qxc6 {[%clk
0:02:34.9]} 11... Rc8 {[%clk 0:02:09.4]} 12. cxd5 {[%clk 0:02:22.6]} 12... Rxc6
{[%clk 0:02:07.9]} 13. dxc6 {[%clk 0:02:23.5]} 13... Nb6 {[%clk 0:01:50.8]} 14.
a5 {[%clk 0:02:20.2]} 14... Nbd5 {[%clk 0:01:50.2]} 15. a6 {[%clk 0:02:16.3]}
15... Bb4 {[%clk 0:01:45.2]} 16. a7 {[%clk 0:02:05.6]} 16... Nxc3 {[%clk
0:01:28.1]} 17. Bd2 {[%clk 0:02:00.2]} 17... Qa8 {[%clk 0:00:27.8]} 18. bxc3
{[%clk 0:01:59.2]} 18... Bd6 {[%clk 0:00:25]} 19. Bb5 {[%clk 0:01:20.3]} 19...
O-O {[%clk 0:00:20.1]} 20. Ke2 {[%clk 0:00:57.5]} 20... g6 {[%clk 0:00:19.5]}
21. Ra6 {[%clk 0:00:54.4]} 21... Bc7 {[%clk 0:00:19.2]} 22. c4 {[%clk
0:00:52.3]} 22... Kg7 {[%clk 0:00:18.7]} 23. Rha1 {[%clk 0:00:51]} 23... Rd8
{[%clk 0:00:18.2]} 24. Bb4 {[%clk 0:00:49.1]} 24... Ne8 {[%clk 0:00:17.6]} 25.
Be7 {[%clk 0:00:43]} 25... Rc8 {[%clk 0:00:16.9]} 26. c5 {[%clk 0:00:42]} 26...
Bd8 {[%clk 0:00:16.3]} 27. Bxd8 {[%clk 0:00:28.5]} 27... Rxd8 {[%clk 0:00:16.1]}
28. Rb6 {[%clk 0:00:28.9]} 28... Nc7 {[%clk 0:00:14.9]} 29. Bc4 {[%clk
0:00:29.1]} 29... Rc8 {[%clk 0:00:13.4]} 30. Rb7 {[%clk 0:00:25.7]} 30... Kf6
{[%clk 0:00:13.3]} 31. e4 {[%clk 0:00:21.6]} 31... Ne8 {[%clk 0:00:12.1]} 32.
Ra6 {[%clk 0:00:20]} 32... Rxc6 {[%clk 0:00:10.5]} 33. Rb8 {[%clk 0:00:16.5]}
33... Rxa6 {[%clk 0:00:07]} 34. Rxa8 {[%clk 0:00:17]} 34... Ra4 {[%clk
0:00:05.1]} 35. Rxe8 {[%clk 0:00:17.1]} 1-0

[Event "*** Titled Tuesday Blitz"]
[Site "Chess.com"]
[Date "2021.02.02"]
[Round "1"]
[White "StockholmMissile"]
[Black "beto-betun"]
[Result "1-0"]
[WhiteElo "2522"]
[BlackElo "2189"]
[TimeControl "180+1"]
[EndTime "10:07:08 PST"]
[Termination "StockholmMissile won on time"]

1. d4 {[%clk 0:02:58.6]} 1... Nf6 {[%clk 0:02:58.9]} 2. Bg5 {[%clk 0:02:57.5]}
2... Ne4 {[%clk 0:02:57.5]} 3. Bf4 {[%clk 0:02:57.6]} 3... d5 {[%clk 0:02:57.7]}
4. e3 {[%clk 0:02:57.2]} 4... g6 {[%clk 0:02:54.7]} 5. Nd2 {[%clk 0:02:51]} 5...
Nxd2 {[%clk 0:02:53]} 6. Qxd2 {[%clk 0:02:51.9]} 6... Bg7 {[%clk 0:02:53.6]} 7.
h4 {[%clk 0:02:51.2]} 7... h5 {[%clk 0:02:52.9]} 8. Nf3 {[%clk 0:02:48.6]} 8...
Nd7 {[%clk 0:02:49.3]} 9. Bd3 {[%clk 0:02:46.7]} 9... O-O {[%clk 0:02:41.7]} 10.
O-O {[%clk 0:02:44]} 10... c5 {[%clk 0:02:42]} 11. c3 {[%clk 0:02:41.8]} 11...
b6 {[%clk 0:02:34.6]} 12. a4 {[%clk 0:02:27.3]} 12... a6 {[%clk 0:02:29.2]} 13.
Rfd1 {[%clk 0:02:07.8]} 13... Bb7 {[%clk 0:02:24.3]} 14. Be2 {[%clk 0:02:05.7]}
14... Nf6 {[%clk 0:02:16.1]} 15. Ne5 {[%clk 0:02:02.1]} 15... Ne4 {[%clk
0:02:16.1]} 16. Qc2 {[%clk 0:02:01.9]} 16... cxd4 {[%clk 0:02:10.7]} 17. exd4
{[%clk 0:02:00.9]} 17... Rc8 {[%clk 0:02:06]} 18. Bd3 {[%clk 0:01:54.6]} 18...
Kh7 {[%clk 0:01:44.5]} 19. f3 {[%clk 0:01:46.7]} 19... Nd6 {[%clk 0:01:37.5]}
20. g4 {[%clk 0:01:28.5]} 20... hxg4 {[%clk 0:01:33.2]} 21. h5 {[%clk
0:01:27.6]} 21... Nf5 {[%clk 0:01:14.9]} 22. hxg6+ {[%clk 0:01:13]} 22... fxg6
{[%clk 0:01:14.5]} 23. fxg4 {[%clk 0:01:13]} 23... Nh4 {[%clk 0:01:08.1]} 24.
Bxg6+ {[%clk 0:00:53.6]} 24... Kg8 {[%clk 0:00:53.2]} 25. Bg3 {[%clk 0:00:51.8]}
25... Nf3+ {[%clk 0:00:50.2]} 26. Nxf3 {[%clk 0:00:50.5]} 26... Rxf3 {[%clk
0:00:51.1]} 27. Kg2 {[%clk 0:00:42.3]} 27... Rxg3+ {[%clk 0:00:49.8]} 28. Kxg3
{[%clk 0:00:41.3]} 28... Qd6+ {[%clk 0:00:50.7]} 29. Kg2 {[%clk 0:00:40.7]}
29... Rf8 {[%clk 0:00:48.6]} 30. Rf1 {[%clk 0:00:33.1]} 30... Bc8 {[%clk
0:00:46.2]} 31. Bh7+ {[%clk 0:00:30.6]} 31... Kh8 {[%clk 0:00:45.4]} 32. Rxf8+
{[%clk 0:00:31.5]} 32... Bxf8 {[%clk 0:00:45.5]} 33. Bf5 {[%clk 0:00:31.7]}
33... Bxf5 {[%clk 0:00:30.2]} 34. Qxf5 {[%clk 0:00:32.6]} 34... Bg7 {[%clk
0:00:16.5]} 35. Qf7 {[%clk 0:00:25.3]} 35... Bh6 {[%clk 0:00:08.3]} 36. Rh1
{[%clk 0:00:23.1]} 1-0

[Event "*** Titled Tuesday Blitz"]
[Site "Chess.com"]
[Date "2021.02.02"]
[Round "1"]
[White "guillembaches"]
[Black "Msb2"]
[Result "0-1"]
[WhiteElo "2457"]
[BlackElo "2896"]
[TimeControl "180+1"]
[EndTime "10:07:09 PST"]
[Termination "Msb2 won on time"]

1. e4 {[%clk 0:03:00.9]} 1... e6 {[%clk 0:02:59.9]} 2. d4 {[%clk 0:02:59.9]}
2... d5 {[%clk 0:03:00.5]} 3. exd5 {[%clk 0:03:00.6]} 3... exd5 {[%clk
0:03:01.4]} 4. Nf3 {[%clk 0:03:01.1]} 4... h6 {[%clk 0:02:59.5]} 5. c4 {[%clk
0:02:58.3]} 5... Bb4+ {[%clk 0:02:58.4]} 6. Nc3 {[%clk 0:02:58.1]} 6... Nf6
{[%clk 0:02:52.9]} 7. Bd3 {[%clk 0:02:50.3]} 7... dxc4 {[%clk 0:02:51.8]} 8.
Bxc4 {[%clk 0:02:51.2]} 8... O-O {[%clk 0:02:51]} 9. O-O {[%clk 0:02:50.8]} 9...
Nbd7 {[%clk 0:02:50.7]} 10. Qd3 {[%clk 0:02:45.8]} 10... Nb6 {[%clk 0:02:47.1]}
11. Bb3 {[%clk 0:02:45.9]} 11... Nbd5 {[%clk 0:02:39.1]} 12. Ne5 {[%clk
0:02:26.3]} 12... c6 {[%clk 0:02:13.9]} 13. Qg3 {[%clk 0:02:22.3]} 13... Kh8
{[%clk 0:02:06.8]} 14. Bd2 {[%clk 0:02:09.8]} 14... Bd6 {[%clk 0:01:45]} 15.
Rfe1 {[%clk 0:02:02.3]} 15... Bf5 {[%clk 0:01:43]} 16. Rad1 {[%clk 0:01:48.8]}
16... Bh7 {[%clk 0:01:41.7]} 17. Qh4 {[%clk 0:01:31.8]} 17... Be7 {[%clk
0:01:31.4]} 18. Qh3 {[%clk 0:01:21.9]} 18... Qc8 {[%clk 0:01:25.2]} 19. Qxc8
{[%clk 0:01:07.6]} 19... Raxc8 {[%clk 0:01:26.1]} 20. Nxd5 {[%clk 0:01:02.7]}
20... Nxd5 {[%clk 0:01:10.3]} 21. Bxd5 {[%clk 0:01:00.3]} 21... cxd5 {[%clk
0:01:11.2]} 22. Ng6+ {[%clk 0:00:57.5]} 22... Bxg6 {[%clk 0:01:09.7]} 23. Rxe7
{[%clk 0:00:56.7]} 23... b6 {[%clk 0:00:54.9]} 24. Rxa7 {[%clk 0:00:49]} 24...
Rc2 {[%clk 0:00:53.8]} 25. Bc3 {[%clk 0:00:43.5]} 25... Re8 {[%clk 0:00:53.4]}
26. Re1 {[%clk 0:00:26.7]} 26... Rxe1+ {[%clk 0:00:50.5]} 27. Bxe1 {[%clk
0:00:27.6]} 27... Rxb2 {[%clk 0:00:51.4]} 28. a4 {[%clk 0:00:24]} 28... Rb1
{[%clk 0:00:49.7]} 29. Re7 {[%clk 0:00:23.5]} 29... Ra1 {[%clk 0:00:49.2]} 30.
f3 {[%clk 0:00:19.3]} 30... Rxa4 {[%clk 0:00:49.1]} 31. Bc3 {[%clk 0:00:17]}
31... Rc4 {[%clk 0:00:47.5]} 32. Bb2 {[%clk 0:00:15.8]} 32... b5 {[%clk
0:00:42.8]} 33. Kf2 {[%clk 0:00:13.8]} 33... b4 {[%clk 0:00:39.7]} 34. Re2
{[%clk 0:00:12.2]} 34... b3 {[%clk 0:00:39.7]} 35. Ke3 {[%clk 0:00:12.1]} 35...
f6 {[%clk 0:00:37.8]} 36. Rd2 {[%clk 0:00:12.2]} 36... Bc2 {[%clk 0:00:36.5]}
37. g4 {[%clk 0:00:12.3]} 37... Kh7 {[%clk 0:00:36.3]} 38. h4 {[%clk 0:00:12.2]}
38... Ra4 {[%clk 0:00:37]} 39. Bc3 {[%clk 0:00:10.1]} 39... Ra2 {[%clk
0:00:36.9]} 40. Re2 {[%clk 0:00:10.2]} 40... b2 {[%clk 0:00:36.1]} 0-1